[Event "Late-Titled-Tuesday-Blitz-May-14-2024"]
[Site "Chess.com"]
[Date "2024.05.14"]
[Round "3"]
[White "BestestBP"]
[Black "SHIVACalypso"]
[Result "1/2-1/2"]
[WhiteElo "2184"]
[BlackElo "2544"]
[TimeControl "180+1"]
[EndTime "14:31:03 PDT"]
[Termination "Game drawn - insufficient material"]

1. c4 {[%clk 0:02:56.7]} 1... c5 {[%clk 0:02:58.1]} 2. Nc3 {[%clk 0:02:56.6]}
2... Nc6 {[%clk 0:02:58.6]} 3. Nf3 {[%clk 0:02:56.8]} 3... g6 {[%clk 0:02:57.4]}
4. g3 {[%clk 0:02:55.6]} 4... Bg7 {[%clk 0:02:58]} 5. Bg2 {[%clk 0:02:56.2]}
5... e6 {[%clk 0:02:58.6]} 6. O-O {[%clk 0:02:56.2]} 6... Nge7 {[%clk
0:02:59.3]} 7. e3 {[%clk 0:02:55.6]} 7... O-O {[%clk 0:02:59.8]} 8. d4 {[%clk
0:02:55.9]} 8... cxd4 {[%clk 0:02:54]} 9. Nxd4 {[%clk 0:02:55.2]} 9... Nxd4
{[%clk 0:02:49.4]} 10. exd4 {[%clk 0:02:56.1]} 10... d6 {[%clk 0:02:50.1]} 11.
b3 {[%clk 0:02:52.1]} 11... Nf5 {[%clk 0:02:44.8]} 12. Ne2 {[%clk 0:02:50.6]}
12... Rb8 {[%clk 0:02:43.6]} 13. Bb2 {[%clk 0:02:49.5]} 13... b6 {[%clk
0:02:43.9]} 14. Qc2 {[%clk 0:02:40.9]} 14... Qc7 {[%clk 0:02:43.8]} 15. d5
{[%clk 0:02:33.7]} 15... e5 {[%clk 0:02:43.1]} 16. Nc3 {[%clk 0:02:33.7]} 16...
a6 {[%clk 0:02:42.2]} 17. Ne4 {[%clk 0:02:33.3]} 17... Bb7 {[%clk 0:02:40.1]}
18. Ba3 {[%clk 0:02:32.9]} 18... Rbd8 {[%clk 0:02:39.1]} 19. Qd3 {[%clk
0:02:26.2]} 19... Ne7 {[%clk 0:02:34.1]} 20. Rac1 {[%clk 0:02:18.8]} 20... h6
{[%clk 0:02:33.1]} 21. Nc3 {[%clk 0:01:42.3]} 21... f5 {[%clk 0:02:30.1]} 22.
Na4 {[%clk 0:01:42.2]} 22... Nc8 {[%clk 0:02:20.9]} 23. b4 {[%clk 0:01:31.3]}
23... Qd7 {[%clk 0:02:14.2]} 24. Qb3 {[%clk 0:01:29.2]} 24... f4 {[%clk
0:02:10.6]} 25. c5 {[%clk 0:01:11.5]} 25... f3 {[%clk 0:01:41.5]} 26. c6 {[%clk
0:01:11.4]} 26... Qf5 {[%clk 0:01:39.1]} 27. Bxf3 {[%clk 0:00:34.1]} 27... Bxc6
{[%clk 0:01:30.9]} 28. Rxc6 {[%clk 0:00:26.9]} 28... Qxf3 {[%clk 0:01:29.1]} 29.
Nxb6 {[%clk 0:00:27.3]} 29... Nxb6 {[%clk 0:01:10.4]} 30. Rxb6 {[%clk
0:00:27.2]} 30... Qxb3 {[%clk 0:01:10.8]} 31. axb3 {[%clk 0:00:27.5]} 31... e4
{[%clk 0:01:11.7]} 32. Rxa6 {[%clk 0:00:17.2]} 32... Bd4 {[%clk 0:01:09.9]} 33.
Bc1 {[%clk 0:00:12.7]} 33... Rf3 {[%clk 0:00:47.4]} 34. Be3 {[%clk 0:00:10.9]}
34... Bxe3 {[%clk 0:00:47.1]} 35. fxe3 {[%clk 0:00:11.8]} 35... Rxe3 {[%clk
0:00:47.9]} 36. Rf6 {[%clk 0:00:11.8]} 36... Kg7 {[%clk 0:00:42.4]} 37. Rfxd6
{[%clk 0:00:11]} 37... Rxd6 {[%clk 0:00:42.5]} 38. Rxd6 {[%clk 0:00:11]} 38...
Rxb3 {[%clk 0:00:40.5]} 39. Re6 {[%clk 0:00:08.6]} 39... Rxb4 {[%clk 0:00:41]}
40. Kf2 {[%clk 0:00:07.6]} 40... Rd4 {[%clk 0:00:37.8]} 41. d6 {[%clk
0:00:05.1]} 41... Kf7 {[%clk 0:00:36.5]} 42. Re7+ {[%clk 0:00:05.4]} 42... Kf6
{[%clk 0:00:36.7]} 43. Re8 {[%clk 0:00:04]} 43... Kf5 {[%clk 0:00:31.4]} 44. Rd8
{[%clk 0:00:03]} 44... Ke6 {[%clk 0:00:29.4]} 45. Re8+ {[%clk 0:00:02.9]} 45...
Kxd6 {[%clk 0:00:28]} 46. Ke3 {[%clk 0:00:03.4]} 46... Ra4 {[%clk 0:00:20.2]}
47. Rxe4 {[%clk 0:00:03.2]} 47... Ra2 {[%clk 0:00:19.8]} 48. g4 {[%clk
0:00:02.7]} 48... Rxh2 {[%clk 0:00:18.7]} 49. Kf4 {[%clk 0:00:03.2]} 49... Rf2+
{[%clk 0:00:17.6]} 50. Kg3 {[%clk 0:00:03.4]} 50... Rf6 {[%clk 0:00:18.1]} 51.
Ra4 {[%clk 0:00:04]} 51... Ke5 {[%clk 0:00:14.9]} 52. Ra5+ {[%clk 0:00:03.6]}
52... Ke4 {[%clk 0:00:14.4]} 53. g5 {[%clk 0:00:04.1]} 53... hxg5 {[%clk
0:00:12.2]} 54. Rxg5 {[%clk 0:00:04.8]} 54... Ra6 {[%clk 0:00:09.6]} 55. Rb5
{[%clk 0:00:03.8]} 55... Re6 {[%clk 0:00:08.1]} 56. Rb1 {[%clk 0:00:03.7]} 56...
Kf5 {[%clk 0:00:07.7]} 57. Rf1+ {[%clk 0:00:04]} 57... Kg5 {[%clk 0:00:08]} 58.
Ra1 {[%clk 0:00:04.5]} 58... Re3+ {[%clk 0:00:08.3]} 59. Kg2 {[%clk 0:00:05.1]}
59... Rb3 {[%clk 0:00:08.8]} 60. Ra5+ {[%clk 0:00:05.2]} 60... Kg4 {[%clk
0:00:09]} 61. Ra4+ {[%clk 0:00:05.9]} 61... Kh5 {[%clk 0:00:08.7]} 62. Ra5+
{[%clk 0:00:06.3]} 62... g5 {[%clk 0:00:09.2]} 63. Ra1 {[%clk 0:00:07]} 63...
Kh4 {[%clk 0:00:09.4]} 64. Kg1 {[%clk 0:00:07.7]} 64... g4 {[%clk 0:00:09.5]}
65. Rc1 {[%clk 0:00:08.3]} 65... Rb2 {[%clk 0:00:09.3]} 66. Ra1 {[%clk
0:00:08.6]} 66... Kh3 {[%clk 0:00:09.6]} 67. Rc1 {[%clk 0:00:08.6]} 67... Rg2+
{[%clk 0:00:09.7]} 68. Kh1 {[%clk 0:00:08.6]} 68... Rh2+ {[%clk 0:00:10.3]} 69.
Kg1 {[%clk 0:00:09.1]} 69... Rd2 {[%clk 0:00:10.8]} 70. Rb1 {[%clk 0:00:09.1]}
70... Ra2 {[%clk 0:00:10.7]} 71. Rc1 {[%clk 0:00:09.4]} 71... Rb2 {[%clk
0:00:11.3]} 72. Ra1 {[%clk 0:00:09.5]} 72... Kg3 {[%clk 0:00:11.9]} 73. Ra3+
{[%clk 0:00:09.2]} 73... Kf4 {[%clk 0:00:11.7]} 74. Ra4+ {[%clk 0:00:08.8]}
74... Kf3 {[%clk 0:00:12.3]} 75. Ra3+ {[%clk 0:00:09.1]} 75... Ke2 {[%clk
0:00:12.9]} 76. Ra1 {[%clk 0:00:07.4]} 76... Rd2 {[%clk 0:00:12.5]} 77. Kg2
{[%clk 0:00:07.1]} 77... Rd3 {[%clk 0:00:12.5]} 78. Ra2+ {[%clk 0:00:06.7]}
78... Ke3 {[%clk 0:00:12.7]} 79. Kg3 {[%clk 0:00:07.2]} 79... Rd2 {[%clk
0:00:12.2]} 80. Rxd2 {[%clk 0:00:06.9]} 80... Kxd2 {[%clk 0:00:12.8]} 81. Kxg4
{[%clk 0:00:07.5]} 1/2-1/2

[Event "Late-Titled-Tuesday-Blitz-May-14-2024"]
[Site "Chess.com"]
[Date "2024.05.14"]
[Round "3"]
[White "Cherepov_Alexej"]
[Black "lilylg"]
[Result "0-1"]
[WhiteElo "2398"]
[BlackElo "2221"]
[TimeControl "180+1"]
[EndTime "14:31:12 PDT"]
[Termination "lilylg won on time"]

1. d4 {[%clk 0:03:00.9]} 1... d5 {[%clk 0:02:57]} 2. c4 {[%clk 0:02:59.7]} 2...
e6 {[%clk 0:02:57.1]} 3. Nf3 {[%clk 0:02:58.3]} 3... c6 {[%clk 0:02:57.4]} 4. e3
{[%clk 0:02:56.6]} 4... f5 {[%clk 0:02:57.5]} 5. Bd3 {[%clk 0:02:55.4]} 5... Nf6
{[%clk 0:02:58.1]} 6. Nc3 {[%clk 0:02:49.7]} 6... Bd6 {[%clk 0:02:58.6]} 7. Qc2
{[%clk 0:02:48.6]} 7... O-O {[%clk 0:02:58.7]} 8. Bd2 {[%clk 0:02:48.6]} 8...
Ne4 {[%clk 0:02:57.3]} 9. O-O {[%clk 0:02:37.6]} 9... Bd7 {[%clk 0:02:54.8]} 10.
Ne5 {[%clk 0:02:36.2]} 10... Be8 {[%clk 0:02:54.6]} 11. Ne2 {[%clk 0:02:32.3]}
11... Nd7 {[%clk 0:02:53.5]} 12. Nf4 {[%clk 0:02:23.8]} 12... Qe7 {[%clk
0:02:50.8]} 13. Nxd7 {[%clk 0:02:16.2]} 13... Qxd7 {[%clk 0:02:50.1]} 14. c5
{[%clk 0:02:11.4]} 14... Bc7 {[%clk 0:02:45.7]} 15. f3 {[%clk 0:02:08.1]} 15...
Nxd2 {[%clk 0:02:43.1]} 16. Qxd2 {[%clk 0:02:09]} 16... e5 {[%clk 0:02:42.9]}
17. dxe5 {[%clk 0:02:00.6]} 17... Bxe5 {[%clk 0:02:43.8]} 18. Be2 {[%clk
0:01:54.4]} 18... Bf7 {[%clk 0:02:21.5]} 19. Nd3 {[%clk 0:01:51.8]} 19... Bf6
{[%clk 0:02:19.3]} 20. f4 {[%clk 0:01:45.7]} 20... Rfe8 {[%clk 0:02:17.7]} 21.
Bf3 {[%clk 0:01:44.2]} 21... d4 {[%clk 0:02:09.6]} 22. Ne5 {[%clk 0:01:28]}
22... Bxe5 {[%clk 0:01:59.7]} 23. fxe5 {[%clk 0:01:28.9]} 23... Rxe5 {[%clk
0:01:54.8]} 24. exd4 {[%clk 0:01:26.3]} 24... Rxc5 {[%clk 0:01:54.2]} 25. Rad1
{[%clk 0:00:57.5]} 25... Rd8 {[%clk 0:01:53.3]} 26. b3 {[%clk 0:00:52.1]} 26...
Re5 {[%clk 0:01:40.5]} 27. dxe5 {[%clk 0:00:42]} 27... Qxd2 {[%clk 0:01:39.8]}
28. Rxd2 {[%clk 0:00:40.5]} 28... Rxd2 {[%clk 0:01:40.7]} 29. Rf2 {[%clk
0:00:36.9]} 29... Rd4 {[%clk 0:01:32.7]} 30. Re2 {[%clk 0:00:34.4]} 30... Be6
{[%clk 0:01:32.2]} 31. Kf2 {[%clk 0:00:32.1]} 31... g5 {[%clk 0:01:29.9]} 32. g3
{[%clk 0:00:28]} 32... Kg7 {[%clk 0:01:20.7]} 33. Ke3 {[%clk 0:00:27.8]} 33...
Rd7 {[%clk 0:01:19.2]} 34. h4 {[%clk 0:00:21.6]} 34... h6 {[%clk 0:01:18.5]} 35.
hxg5 {[%clk 0:00:19.5]} 35... hxg5 {[%clk 0:01:19.4]} 36. Rd2 {[%clk 0:00:18.5]}
36... Kf7 {[%clk 0:01:17.5]} 37. Rxd7+ {[%clk 0:00:17.5]} 37... Bxd7 {[%clk
0:01:17.6]} 38. Kd4 {[%clk 0:00:17.6]} 38... Ke6 {[%clk 0:01:16.6]} 39. b4
{[%clk 0:00:17.5]} 39... Be8 {[%clk 0:01:12.8]} 40. Bd1 {[%clk 0:00:17.3]} 40...
Ke7 {[%clk 0:01:03.8]} 41. Bc2 {[%clk 0:00:16.3]} 41... Bf7 {[%clk 0:01:01.4]}
42. a3 {[%clk 0:00:15.5]} 42... Be6 {[%clk 0:01:00.9]} 43. Bd3 {[%clk
0:00:14.2]} 43... b6 {[%clk 0:00:57.6]} 44. Be2 {[%clk 0:00:14.1]} 44... Kd7
{[%clk 0:00:55.4]} 45. Bf3 {[%clk 0:00:14]} 45... Kc7 {[%clk 0:00:52.6]} 46. Bg2
{[%clk 0:00:14.2]} 46... Kd7 {[%clk 0:00:41.7]} 47. Bf3 {[%clk 0:00:14.2]} 47...
Kc7 {[%clk 0:00:41.9]} 48. Bg2 {[%clk 0:00:14.5]} 48... a6 {[%clk 0:00:39.9]}
49. Bf3 {[%clk 0:00:14.3]} 49... a5 {[%clk 0:00:36.4]} 50. Bg2 {[%clk
0:00:12.9]} 50... axb4 {[%clk 0:00:35.8]} 51. axb4 {[%clk 0:00:13.8]} 51... Bd7
{[%clk 0:00:32.4]} 52. Bf3 {[%clk 0:00:13.8]} 52... Be6 {[%clk 0:00:32.2]} 53.
Bg2 {[%clk 0:00:13.8]} 53... Kd7 {[%clk 0:00:33.1]} 54. Bf3 {[%clk 0:00:13.8]}
54... g4 {[%clk 0:00:32.2]} 55. Bg2 {[%clk 0:00:13.6]} 55... Kc7 {[%clk
0:00:32.5]} 56. Bh1 {[%clk 0:00:13.2]} 56... Kb7 {[%clk 0:00:32]} 57. Bg2 {[%clk
0:00:13.3]} 57... Bd7 {[%clk 0:00:31]} 58. Bh1 {[%clk 0:00:12.9]} 58... Ka6
{[%clk 0:00:30.9]} 59. Bg2 {[%clk 0:00:11.8]} 59... Kb5 {[%clk 0:00:30.6]} 60.
Kc3 {[%clk 0:00:12.3]} 60... Be6 {[%clk 0:00:30.2]} 61. Bf1+ {[%clk 0:00:11.1]}
61... Ka4 {[%clk 0:00:29.8]} 62. Bg2 {[%clk 0:00:11.1]} 62... c5 {[%clk
0:00:30]} 63. Bc6+ {[%clk 0:00:07.3]} 63... Ka3 {[%clk 0:00:29.1]} 64. bxc5
{[%clk 0:00:06.5]} 64... bxc5 {[%clk 0:00:30]} 65. Bb5 {[%clk 0:00:06.7]} 65...
Bf7 {[%clk 0:00:20]} 66. Bd3 {[%clk 0:00:06.2]} 66... Be6 {[%clk 0:00:19.9]} 67.
Bc2 {[%clk 0:00:06.1]} 67... f4 {[%clk 0:00:15.7]} 68. gxf4 {[%clk 0:00:05.2]}
68... g3 {[%clk 0:00:16.1]} 69. Be4 {[%clk 0:00:05]} 69... Bf5 {[%clk
0:00:15.6]} 70. Bf3 {[%clk 0:00:04.5]} 70... Bg4 {[%clk 0:00:14.8]} 71. Be4
{[%clk 0:00:04.1]} 71... Bf5 {[%clk 0:00:14.9]} 72. Bf3 {[%clk 0:00:03.7]} 72...
Bg4 {[%clk 0:00:15.3]} 73. Bg2 {[%clk 0:00:03.5]} 73... Be6 {[%clk 0:00:14.3]}
74. Be4 {[%clk 0:00:03.2]} 74... c4 {[%clk 0:00:14.4]} 75. Bf3 {[%clk
0:00:02.8]} 75... Bg4 {[%clk 0:00:14.5]} 76. Be4 {[%clk 0:00:02.6]} 76... Be6
{[%clk 0:00:15]} 77. Bf3 {[%clk 0:00:02.7]} 77... Ka4 {[%clk 0:00:15.6]} 78. Be4
{[%clk 0:00:01.5]} 78... Kb5 {[%clk 0:00:16]} 79. Bf3 {[%clk 0:00:00.1]} 79...
Kc5 {[%clk 0:00:16.3]} 80. Bg2 {[%clk 0:00:00.4]} 80... Bf5 {[%clk 0:00:16.4]}
81. Bf3 {[%clk 0:00:00.3]} 81... Bg4 {[%clk 0:00:15.9]} 82. Bg2 {[%clk
0:00:00.4]} 82... Be6 {[%clk 0:00:16.1]} 83. Be4 {[%clk 0:00:00.4]} 83... Bd5
{[%clk 0:00:15.9]} 0-1

[Event "Late-Titled-Tuesday-Blitz-May-14-2024"]
[Site "Chess.com"]
[Date "2024.05.14"]
[Round "3"]
[White "imdvb6307"]
[Black "1800_strength"]
[Result "1/2-1/2"]
[WhiteElo "2530"]
[BlackElo "2762"]
[TimeControl "180+1"]
[EndTime "14:31:16 PDT"]
[Termination "Game drawn by stalemate"]

1. d4 {[%clk 0:03:00.9]} 1... b5 {[%clk 0:02:59.8]} 2. e4 {[%clk 0:02:56.1]}
2... Bb7 {[%clk 0:03:00.1]} 3. Bxb5 {[%clk 0:02:56]} 3... Bxe4 {[%clk
0:03:00.1]} 4. Nf3 {[%clk 0:02:55.8]} 4... Nf6 {[%clk 0:03:00.7]} 5. O-O {[%clk
0:02:55.1]} 5... e6 {[%clk 0:02:56.8]} 6. Re1 {[%clk 0:02:54.2]} 6... Be7 {[%clk
0:02:56.7]} 7. Bf1 {[%clk 0:02:49]} 7... O-O {[%clk 0:02:56.2]} 8. c4 {[%clk
0:02:45.6]} 8... c6 {[%clk 0:02:55.6]} 9. Nc3 {[%clk 0:02:42.9]} 9... Bg6 {[%clk
0:02:55.3]} 10. c5 {[%clk 0:02:30.6]} 10... a5 {[%clk 0:02:45.4]} 11. Ne5 {[%clk
0:02:23.5]} 11... Na6 {[%clk 0:02:39.7]} 12. Nxg6 {[%clk 0:02:09.6]} 12... hxg6
{[%clk 0:02:08.6]} 13. Bf4 {[%clk 0:02:02.5]} 13... Nb4 {[%clk 0:02:07.7]} 14.
Na4 {[%clk 0:01:49.9]} 14... Nbd5 {[%clk 0:02:05.5]} 15. Be5 {[%clk 0:01:47.4]}
15... Ne8 {[%clk 0:01:46.1]} 16. Bd3 {[%clk 0:01:36.3]} 16... Bf6 {[%clk
0:01:46.1]} 17. Qd2 {[%clk 0:01:28.5]} 17... Bxe5 {[%clk 0:01:40.8]} 18. dxe5
{[%clk 0:01:28.6]} 18... Qb8 {[%clk 0:01:32.9]} 19. Re4 {[%clk 0:01:19.5]} 19...
f5 {[%clk 0:00:56.9]} 20. Re2 {[%clk 0:01:04]} 20... Qb4 {[%clk 0:00:54.8]} 21.
Qxb4 {[%clk 0:00:59.5]} 21... axb4 {[%clk 0:00:54.3]} 22. b3 {[%clk 0:00:59.1]}
22... g5 {[%clk 0:00:53.6]} 23. Bc4 {[%clk 0:00:54.3]} 23... Nec7 {[%clk
0:00:53.5]} 24. g3 {[%clk 0:00:52.4]} 24... Ra5 {[%clk 0:00:53.5]} 25. Rd2
{[%clk 0:00:44.3]} 25... Rfa8 {[%clk 0:00:48]} 26. Rf1 {[%clk 0:00:41.2]} 26...
g4 {[%clk 0:00:44.2]} 27. f3 {[%clk 0:00:35.9]} 27... Ne3 {[%clk 0:00:37.4]} 28.
Rc1 {[%clk 0:00:34.3]} 28... Ncd5 {[%clk 0:00:19.2]} 29. Kf2 {[%clk 0:00:31.8]}
29... gxf3 {[%clk 0:00:18.9]} 30. h4 {[%clk 0:00:29.3]} 30... Ng4+ {[%clk
0:00:17.5]} 31. Kxf3 {[%clk 0:00:28.4]} 31... Nxe5+ {[%clk 0:00:18.4]} 32. Kf2
{[%clk 0:00:27.9]} 32... Nxc4 {[%clk 0:00:19]} 33. Rxc4 {[%clk 0:00:25.7]} 33...
Kf7 {[%clk 0:00:19.7]} 34. Kf3 {[%clk 0:00:18.8]} 34... Rb5 {[%clk 0:00:20.2]}
35. Nb6 {[%clk 0:00:18.1]} 35... Nxb6 {[%clk 0:00:19.3]} 36. cxb6 {[%clk
0:00:18.4]} 36... Ke7 {[%clk 0:00:18.9]} 37. Rdd4 {[%clk 0:00:16.8]} 37... c5
{[%clk 0:00:19.4]} 38. Rd2 {[%clk 0:00:15.6]} 38... Rb8 {[%clk 0:00:18.9]} 39.
g4 {[%clk 0:00:15]} 39... R8xb6 {[%clk 0:00:17.6]} 40. gxf5 {[%clk 0:00:15.3]}
40... exf5 {[%clk 0:00:18.5]} 41. Kf4 {[%clk 0:00:15.2]} 41... g6 {[%clk
0:00:16]} 42. Re2+ {[%clk 0:00:13.9]} 42... Re6 {[%clk 0:00:16.1]} 43. Rd2
{[%clk 0:00:12]} 43... d6 {[%clk 0:00:16.2]} 44. Kg5 {[%clk 0:00:11.9]} 44...
Rb8 {[%clk 0:00:15.9]} 45. Rc1 {[%clk 0:00:10.7]} 45... Rh8 {[%clk 0:00:16.4]}
46. Rh1 {[%clk 0:00:09.5]} 46... Rh5+ {[%clk 0:00:16.9]} 47. Kf4 {[%clk
0:00:09.2]} 47... Re4+ {[%clk 0:00:17.7]} 48. Kg3 {[%clk 0:00:09.4]} 48... Rf4
{[%clk 0:00:18]} 49. Kxf4 {[%clk 0:00:09.3]} 49... Kd7 {[%clk 0:00:17.9]} 50.
Re2 {[%clk 0:00:09.6]} 50... g5+ {[%clk 0:00:18.1]} 51. Kxf5 {[%clk 0:00:08.1]}
51... gxh4+ {[%clk 0:00:18.7]} 52. Kg4 {[%clk 0:00:08.5]} 52... Rd5 {[%clk
0:00:19]} 53. Rxh4 {[%clk 0:00:07.7]} 53... Rd1 {[%clk 0:00:19.5]} 54. Kg3
{[%clk 0:00:07.7]} 54... Kc6 {[%clk 0:00:20]} 55. Kf2 {[%clk 0:00:07.8]} 55...
Rd3 {[%clk 0:00:20.4]} 56. Rh6 {[%clk 0:00:07.4]} 56... Rd4 {[%clk 0:00:20.3]}
57. Ke1 {[%clk 0:00:07.5]} 57... Kb5 {[%clk 0:00:15.7]} 58. Rd2 {[%clk
0:00:07.8]} 58... Re4+ {[%clk 0:00:15.8]} 59. Kd1 {[%clk 0:00:08.2]} 59... c4
{[%clk 0:00:15]} 60. bxc4+ {[%clk 0:00:07.7]} 60... Kxc4 {[%clk 0:00:14.3]} 61.
Rhxd6 {[%clk 0:00:08.2]} 61... Kb5 {[%clk 0:00:14.9]} 62. R6d5+ {[%clk
0:00:08.2]} 62... Ka4 {[%clk 0:00:15.2]} 63. R5d4 {[%clk 0:00:07.7]} 63... Re3
{[%clk 0:00:15.7]} 64. Rb2 {[%clk 0:00:07.7]} 64... Ka3 {[%clk 0:00:15.4]} 65.
Rdxb4 {[%clk 0:00:07.9]} 65... Re1+ {[%clk 0:00:15.9]} 66. Kd2 {[%clk 0:00:07]}
66... Re2+ {[%clk 0:00:16.5]} 67. Kc3 {[%clk 0:00:07.1]} 67... Re3+ {[%clk
0:00:16.9]} 68. Kc4 {[%clk 0:00:07.1]} 68... Re4+ {[%clk 0:00:17.5]} 69. Kb5
{[%clk 0:00:07.2]} 69... Re5+ {[%clk 0:00:18.1]} 70. Ka6 {[%clk 0:00:05.4]}
70... Ra5+ {[%clk 0:00:18.4]} 71. Kb6 {[%clk 0:00:05]} 71... Ra6+ {[%clk
0:00:18.8]} 72. Kc5 {[%clk 0:00:04.2]} 72... Rc6+ {[%clk 0:00:19.1]} 73. Kb5
{[%clk 0:00:04.8]} 73... Rb6+ {[%clk 0:00:19.5]} 74. Kc4 {[%clk 0:00:05.3]}
74... Rc6+ {[%clk 0:00:19.8]} 75. Kd4 {[%clk 0:00:05.6]} 75... Rd6+ {[%clk
0:00:20.4]} 76. Kc3 {[%clk 0:00:06.1]} 76... Rd3+ {[%clk 0:00:20.7]} 77. Kc4
{[%clk 0:00:06.6]} 77... Rd4+ {[%clk 0:00:21.2]} 78. Kc5 {[%clk 0:00:06.7]}
78... Rd5+ {[%clk 0:00:21.7]} 79. Kb6 {[%clk 0:00:07.2]} 79... Rd6+ {[%clk
0:00:22.2]} 80. Kb7 {[%clk 0:00:06.8]} 80... Rd7+ {[%clk 0:00:22.7]} 81. Kb8
{[%clk 0:00:06.3]} 81... Rd8+ {[%clk 0:00:23.2]} 82. Ka7 {[%clk 0:00:06.4]}
82... Ra8+ {[%clk 0:00:23.1]} 83. Kb6 {[%clk 0:00:06.1]} 83... Ra6+ {[%clk
0:00:23.4]} 84. Kb5 {[%clk 0:00:05.9]} 84... Rb6+ {[%clk 0:00:22.6]} 85. Kc4
{[%clk 0:00:06.1]} 85... Rc6+ {[%clk 0:00:23.2]} 86. Kd3 {[%clk 0:00:05.7]}
86... Rc3+ {[%clk 0:00:23.5]} 87. Kd2 {[%clk 0:00:05.7]} 87... Rd3+ {[%clk
0:00:23.9]} 88. Kc1 {[%clk 0:00:05.5]} 88... Rd1+ {[%clk 0:00:23.5]} 89. Kc2
{[%clk 0:00:05.9]} 89... Rd2+ {[%clk 0:00:24]} 90. Kc3 {[%clk 0:00:06.2]} 90...
Rd3+ {[%clk 0:00:24.6]} 91. Kc4 {[%clk 0:00:06.2]} 91... Rd4+ {[%clk 0:00:25.1]}
92. Kb5 {[%clk 0:00:05.7]} 92... Rd5+ {[%clk 0:00:25.6]} 93. Kc6 {[%clk
0:00:05.5]} 93... Rd6+ {[%clk 0:00:25.7]} 94. Kb7 {[%clk 0:00:05]} 94... Rd7+
{[%clk 0:00:26.1]} 95. Kc8 {[%clk 0:00:04.6]} 95... Rd8+ {[%clk 0:00:26.5]} 96.
Kc7 {[%clk 0:00:04.4]} 96... Rd7+ {[%clk 0:00:27]} 97. Kxd7 {[%clk 0:00:04.8]}
1/2-1/2